fUSD/lending_fUSD_20250216
["ID","MTS","AMOUNT","RATE_DAILY","PERIOD"]
[353273646,1739734245246,-500.0,0.000148,2]
[353273647,1739734245257,-500.0,0.000148,2]
[353273648,1739734245267,-500.0,0.000148,2]
[353273649,1739734245277,-500.0,0.000148,2]
[353273650,1739734245288,-500.0,0.000148,2]
[353273651,1739734245298,-500.0,0.000148,2]
[353273652,1739734245312,-500.0,0.000148,2]
[353273653,1739734245322,-500.0,0.000148,2]
[353273654,1739734245332,-500.0,0.000148,2]
[353273655,1739734245342,-500.0,0.000148,2]
[353273656,1739734245357,-500.0,0.000148,2]
[353273657,1739734245368,-500.0,0.000148,2]
[353273658,1739734245377,-500.0,0.000148,2]
[353273659,1739734245387,-500.0,0.000148,2]
[353273660,1739734245397,-500.0,0.000148,2]
[353273661,1739734245407,-500.0,0.000148,2]
[353273662,1739734245417,-500.0,0.000148,2]
[353273663,1739734245427,-500.0,0.000148,2]
[353273664,1739734245437,-500.0,0.000148,2]
[353273665,1739734245446,-500.0,0.000148,2]
[353273666,1739734245455,-975.0,0.000148,2]
[353273667,1739734245464,-151.0,0.000148,2]
[353273668,1739734245475,-212.017761,0.000148,2]
[353273669,1739734245485,-212.017761,0.000148,2]
[353273670,1739734245495,-151.0,0.000148,2]
[353273671,1739734245504,-151.0,0.000148,2]
[353273672,1739734245514,-228993.285111,0.000148,3]
[353273673,1739734245523,-2531.788647,0.000148,2]
[353273674,1739734245533,-2531.788647,0.000148,2]
[353273675,1739734245543,-203192.45969031,0.000148,2]
[353273676,1739734245552,-1653.74,0.00014826,2]
[353273677,1739734245562,-1787.0,0.00014843,2]
[353273678,1739734245571,-782.0,0.00014843,2]
[353273679,1739734245581,-2955.0,0.00014843,2]
[353273680,1739734245591,-908.0,0.00014843,2]
[353273681,1739734245602,-1264.0,0.00014843,2]
[353273682,1739734245611,-539.0,0.00014843,2]
[353273683,1739734245621,-4025.0,0.00014843,2]
[353273684,1739734245631,-2024.0,0.00014843,2]
[353273685,1739734245640,-150.0,0.00014843,2]
[353273686,1739734245649,-3917.0,0.00014843,2]
[353273687,1739734245658,-1272.0,0.00014843,2]
[353273688,1739734245667,-1008.0,0.00014843,2]
[353273689,1739734245676,-2317.72965078,0.00014864,11]
[353273690,1739734245686,-450.0,0.0001487,2]
[353273691,1739734245695,-708.4899369,0.0001489,2]
[353273692,1739734245705,-8704.8925176,0.0001489,2]
[353273693,1739734245715,-391.276165,0.000149,2]
[353273694,1739734245724,-151.0,0.000149,2]
[353273695,1739734245733,-151.0,0.000149,2]
[353273696,1739734245744,-365.446976,0.000149,2]
[353273697,1739734245755,-365.446976,0.000149,2]
[353273698,1739734245764,-158.794927,0.000149,2]
[353273699,1739734245774,-158.794927,0.000149,2]
[353273700,1739734245784,-153.789085,0.000149,2]
[353273701,1739734245793,-152.286054,0.000149,2]
[353273702,1739734245803,-153.789085,0.000149,2]
[353273703,1739734245812,-151.0,0.000149,2]
[353273704,1739734245822,-151.0,0.000149,2]
[353273705,1739734245831,-151.0,0.000149,2]
[353273706,1739734245841,-332.232122,0.000149,2]
[353273707,1739734245851,-332.232122,0.000149,2]
[353273708,1739734245861,-151.0,0.000149,2]
[353273709,1739734245870,-151.0,0.000149,2]
[353273710,1739734245880,-151.0,0.000149,2]
[353273711,1739734245889,-151.0,0.000149,2]
[353273713,1739734245900,-151.0,0.000149,2]
[353273714,1739734245909,-151.644883,0.000149,2]
[353273715,1739734245919,-282.536814,0.000149,2]
[353273716,1739734245928,-282.536814,0.000149,2]
[353273717,1739734245938,-202.367822,0.000149,2]
[353273718,1739734245948,-151.0,0.000149,2]
[353273720,1739734245958,-2640.793672,0.000149,2]
[353273722,1739734245968,-2640.793672,0.000149,2]
[353273723,1739734245978,-283.306099,0.000149,2]
[353273724,1739734245987,-283.306099,0.000149,2]
[353273725,1739734245997,-256.310124,0.000149,2]
[353273726,1739734246007,-256.310124,0.000149,2]
[353273727,1739734246016,-255.679519,0.000149,2]
[353273728,1739734246026,-255.679519,0.000149,2]
[353273729,1739734246035,-10000.0,0.000149,2]
[353273730,1739734246045,-10000.0,0.000149,2]
[353273731,1739734246055,-151.0,0.000149,2]
[353273732,1739734246064,-1237.84708,0.000149,2]
[353273733,1739734246074,-1237.84708,0.000149,2]
[353273734,1739734246083,-151.0,0.000149,2]
[353273735,1739734246092,-151.0,0.000149,2]
[353273737,1739734246104,-151.0,0.000149,2]
[353273739,1739734246114,-151.0,0.000149,2]
[353273740,1739734246124,-151.0,0.000149,2]
[353273741,1739734246134,-151.0,0.000149,2]
[353273742,1739734246143,-297.819216,0.000149,2]
[353273743,1739734246153,-1075.758051,0.000149,2]
[353273744,1739734246162,-1075.758051,0.000149,2]
[353273745,1739734246172,-151.0,0.000149,2]
[353273746,1739734246181,-416.362234,0.000149,2]
[353273747,1739734246191,-416.362234,0.000149,2]
[353273748,1739734246200,-151.0,0.000149,2]
[353273749,1739734246210,-212.017761,0.000149,2]
[353273750,1739734246219,-212.017761,0.000149,2]
[353273751,1739734246228,-151.0,0.000149,2]
[353273752,1739734246238,-1884.63,0.000149,31]
[353273753,1739734246248,-1884.63,0.000149,31]
[353273754,1739734246257,-1884.63,0.000149,31]
[353273755,1739734246267,-1884.63,0.000149,31]
[353273756,1739734246277,-1884.63,0.000149,31]
[353273757,1739734246287,-1884.63,0.000149,31]
[353273758,1739734246296,-1884.63,0.000149,31]
[353273759,1739734246309,-1884.63,0.000149,31]
[353273760,1739734246319,-1884.63,0.000149,31]
[353273761,1739734246328,-1884.63,0.000149,31]
[353273762,1739734246338,-1884.63,0.000149,31]
[353273763,1739734246348,-1884.63,0.000149,31]
[353273764,1739734246359,-1884.63,0.000149,31]
[353273765,1739734246368,-1884.63,0.000149,31]
[353273766,1739734246379,-1884.63,0.000149,31]
[353273767,1739734246389,-1884.63,0.000149,31]
[353273768,1739734246399,-2355.88991,0.000149,2]
[353273769,1739734246409,-151.0,0.000149,2]
[353273770,1739734246419,-135833.226905,0.000149,3]
[353273771,1739734246428,-2531.788647,0.000149,2]
[353273772,1739734246438,-2531.788647,0.000149,2]
[353273773,1739734246447,-2259.0,0.00014923,2]
[353273774,1739734246457,-1653.74,0.00014963,2]
[353273775,1739734246467,-250.0,0.0001497,2]
[353273776,1739734246477,-250.0,0.0001497,2]
[353273777,1739734246487,-250.0,0.0001497,2]
[353273778,1739734246497,-241.36307771,0.00014973,2]
[353273779,1739734246506,-500.0,0.00014973,2]
[353273780,1739734246515,-316.34092908,0.00014973,2]
[353273781,1739734246525,-500.0,0.00014973,2]
[353273783,1739734246534,-500.0,0.00014973,2]
[353273785,1739734246544,-500.0,0.00014973,2]
[353273787,1739734246553,-500.0,0.00014973,2]
[353273788,1739734246562,-500.0,0.00014973,2]
[353273790,1739734246572,-500.84275394,0.00014973,2]
[353273792,1739734246581,-2069.8517695,0.0001498,2]
[353273794,1739734246590,-1766.6189052,0.0001498,2]
[353273796,1739734246602,-605.6303215,0.0001498,2]
[353273798,1739734246612,-502.7707062,0.0001498,2]
[353273800,1739734246622,-7441.1033661,0.0001498,2]
[353273803,1739734246631,-6177.3142146,0.0001498,2]
[353273805,1739734246641,-632.39772966,0.0001498,2]
[353273807,1739734246651,-2258.0,0.00014987,12]
[353273809,1739734246660,-151.0,0.00014989,2]
[353273811,1739734246670,-151.0,0.00014989,2]
[353273813,1739734246679,-151.0,0.00014989,2]
[353273815,1739734246688,-151.0,0.00014989,2]
[353273817,1739734246698,-222.738972,0.00014989,2]
[353273819,1739734246708,-300.0,0.00014989,2]
[353273821,1739734246717,-320.45093159,0.00014989,2]
[353273823,1739734246727,-300.0,0.00014989,2]
[353273824,1739734246737,-666.0,0.00014989,2]
[353273827,1739734246748,-132119.19179827,0.0001499,3]
[353273829,1739734246758,-150690.22988055,0.0001499,3]
[353273831,1739734246767,-42396.90124837,0.0001499,3]
[353273848,1739734246922,-4700.0,0.0001499,3]
[353273850,1739734246934,-535.63000001,0.0001499,3]
[353273852,1739734246945,-484.77423837,0.0001499,3]
[353273854,1739734246956,-77034.90934473,0.0001499,3]
[353273857,1739734246968,-5755.88586317,0.0001499,3]
[353273859,1739734246979,-1794.55587893,0.0001499,3]
[353273861,1739734246991,-4019.09127962,0.0001499,3]
[353273863,1739734247002,-315.6,0.0001499,3]
[353273888,1739734247248,-4968.75066637,0.00011563,2]
[353273890,1739734247259,-151.0,0.0001469,2]
[353273892,1739734247268,-151.0,0.000147,2]
[353273894,1739734247278,-151.0,0.000148,2]
[353273896,1739734247286,-151.0,0.000149,2]
[353273898,1739734247295,-18733.69054665,0.0001499,3]
[353274110,1739735432288,-200.0,0.00010099,2]
[353274111,1739735432298,-166.25,0.00010137,2]
[353274112,1739735432307,-200.0,0.00010379,2]
[353274113,1739735432316,-248.57,0.000107,2]
[353274114,1739735432326,-2206.0,0.000107,5]
[353274115,1739735432335,-651.85,0.00010769,2]
[353274116,1739735432344,-150.0,0.00010959,2]
[353274117,1739735432353,-266.84,0.00010999,2]
[353274118,1739735432362,-755.38,0.00010999,2]
[353274119,1739735432371,-338.61708961,0.00010999,2]
[353274120,1739735432394,-6003.15291039,0.00010999,2]
[353274121,1739735432404,-150.99,0.00010999,2]
[353274122,1739735432413,-299.99,0.00010999,2]
[353274123,1739735432422,-200.0,0.00011068,2]
[353274124,1739735432434,-491.35,0.00011099,2]
[353274125,1739735432443,-500.0,0.00011154,2]
[353274126,1739735432452,-500.0,0.00011154,2]
[353274127,1739735432461,-490.46,0.00011843,2]
[353274128,1739735432470,-515.12074,0.00012242,2]
[353274129,1739735432479,-2000.0,0.00012274,2]
[353274130,1739735432488,-23900.0,0.00012278,2]
[353274131,1739735432497,-1273.0,0.00012342,2]
[353274132,1739735432506,-2025.0,0.00012342,2]
[353274133,1739735432515,-150.0,0.00012342,2]
[353274134,1739735432524,-569.0,0.00012342,2]
[353274135,1739735432533,-638.0,0.00012342,2]
[353274136,1739735432542,-1786.0,0.00012342,2]
[353274137,1739735432551,-783.0,0.00012342,2]
[353274138,1739735432560,-908.0,0.00012342,2]
[353274139,1739735432569,-1265.0,0.00012342,2]
[353274140,1739735432578,-2956.0,0.00012342,2]
[353274141,1739735432587,-4027.0,0.00012342,2]
[353274142,1739735432597,-539.0,0.00012342,2]
[353274143,1739735432607,-150.0,0.00012342,2]
[353274144,1739735432617,-3917.0,0.00012342,2]
[353274145,1739735432626,-1008.0,0.00012342,2]
[353274146,1739735432636,-1000.0,0.00012614,2]
[353274147,1739735432646,-150.0,0.00012614,2]
[353274148,1739735432655,-250.0,0.00012638,2]
[353274149,1739735432664,-196.27,0.00012663,2]
[353274150,1739735432674,-374.76,0.00012667,2]
[353274151,1739735432683,-686.26,0.00012702,2]
[353274152,1739735432692,-182.87,0.00012712,2]
[353274153,1739735432701,-2000.0,0.00012951,2]
[353274154,1739735432710,-1684.79,0.00012951,2]
[353274156,1739735432722,-550.0,0.00013,2]
[353274158,1739735432731,-194.82,0.00013009,2]
[353274159,1739735432740,-651.85,0.00013033,2]
[353274161,1739735432750,-167.04,0.00013072,2]
[353274163,1739735432759,-300.0,0.00013243,2]
[353274165,1739735432770,-434.57214161,0.00013293,2]
[353274168,1739735432789,-1893.67387402,0.00013293,2]
[353274171,1739735432803,-12.62398437,0.00013293,2]
[353274172,1739735432813,-250.0,0.00013416,2]
[353274174,1739735432823,-112.13511535,0.00013698,3]
[353274177,1739735432837,-1156.28488465,0.00013698,3]
[353274179,1739735432846,-200.0,0.00013699,2]
[353274181,1739735432855,-278.87,0.00013699,2]
[353274184,1739735432865,-500.0,0.00013894,2]
[353274187,1739735432874,-500.0,0.00013894,2]
[353274190,1739735432883,-154.0,0.000139,2]
[353274192,1739735432892,-1000.0,0.00014191,2]
[353274194,1739735432902,-196.27,0.00014246,2]
[353274196,1739735432912,-1475.708,0.0001429,2]
[353274198,1739735432921,-58.06711535,0.00014471,2]
[353274668,1739735438264,-150.0,0.00012342,2]
[353274669,1739735438274,-1268.42,0.00013972,3]
[353274670,1739735438283,-420.38483228,0.00014246,3]
[353274671,1739735438295,-848.03516772,0.00014246,3]
[353274672,1739735438304,-457.05362465,0.00014471,2]
[353274673,1739735438313,-439.1846069,0.00014497,2]
[353274674,1739735438325,-1740.8153931,0.00014497,2]
[353274675,1739735438334,-151.0,0.000145,2]
[353274676,1739735438343,-313.020932,0.000145,2]
[353274677,1739735438352,-313.020932,0.000145,2]
[353274678,1739735438361,-151.0,0.000145,2]
[353274679,1739735438371,-1268.42,0.0001452,3]
[353274680,1739735438380,-2180.0,0.00014646,2]
[353274681,1739735438389,-15778.26048666,0.00014682,6]
[353274682,1739735438404,-1799.94722555,0.00014682,6]
[353274683,1739735438416,-6582.06123895,0.00014682,6]
[353274684,1739735438425,-588.5149204,0.00014689,2]
[353274685,1739735438434,-151.0,0.0001469,2]
[353274686,1739735438443,-151.0,0.0001469,2]
[353274687,1739735438452,-313.020932,0.0001469,2]
[353274688,1739735438462,-313.020932,0.0001469,2]
[353274689,1739735438471,-151.0,0.0001469,2]
[353274690,1739735438480,-151.0,0.0001469,2]
[353274691,1739735438489,-151.0,0.0001469,2]
[353274692,1739735438498,-151.0,0.0001469,2]
[353274693,1739735438507,-151.0,0.0001469,2]
[353274694,1739735438516,-151.0,0.0001469,2]
[353274695,1739735438525,-151.0,0.0001469,2]
[353274696,1739735438534,-151.0,0.0001469,2]
[353274697,1739735438543,-151.0,0.0001469,2]
[353274698,1739735438552,-151.0,0.0001469,2]
[353274699,1739735438563,-151.0,0.0001469,2]
[353274700,1739735438571,-151.0,0.0001469,2]
[353274701,1739735438580,-151.0,0.0001469,2]
[353274702,1739735438589,-151.0,0.0001469,2]
[353274703,1739735438598,-151.0,0.0001469,2]
[353274704,1739735438607,-151.0,0.0001469,2]
[353274705,1739735438616,-151.0,0.0001469,2]
[353274706,1739735438625,-168.214539,0.0001469,2]
[353274707,1739735438634,-344.57215728,0.00014693,6]
[353274708,1739735438643,-200.0,0.00014696,6]
[353274709,1739735438657,-151.0,0.000147,2]
[353274710,1739735438666,-151.0,0.000147,2]
[353274711,1739735438674,-313.020932,0.000147,2]
[353274712,1739735438683,-313.020932,0.000147,2]
[353274713,1739735438692,-151.0,0.000147,2]
[353274714,1739735438702,-24160.26895116,0.00014704,6]
[353274715,1739735438711,-4107.17549642,0.00014714,6]
[353274716,1739735438722,-344.57215728,0.00014716,6]
[353274717,1739735438731,-200.0,0.00014717,6]
[353274718,1739735438741,-19734.38830822,0.00014718,6]
[353274719,1739735438750,-703.64613562,0.00014718,6]
[353274720,1739735438762,-1655.466316,0.00014718,6]
[353274721,1739735438774,-18144.0,0.00014718,6]
[353274722,1739735438789,-3657.15649954,0.00014718,6]
[353274723,1739735438799,-9767.84350069,0.00014728,6]
[353274724,1739735438811,-9966.54480753,0.00014728,6]
[353274725,1739735438820,-200.0,0.00014731,6]
[353274726,1739735438829,-4107.17549642,0.00014732,6]
[353274727,1739735438838,-4107.17549642,0.00014733,6]
[353274728,1739735438847,-2672.49401407,0.00014733,2]
[353274729,1739735440363,-353.7906491,0.00014733,2]
[353274730,1739735440549,-1255.44935089,0.00014741,6]
[353274731,1739735440561,-956.05509953,0.00014741,6]
[353274732,1739735440587,-17522.8838578,0.00014741,6]
[353274733,1739735440597,-150.0,0.00014744,2]
[353274734,1739735440606,-3026.28466309,0.00014752,2]
[353274735,1739735440616,-24160.26895116,0.00014758,6]
[353274736,1739735440626,-201.91527975,0.00014761,2]
[353274737,1739735440635,-19734.38830822,0.0001477,6]
[353274738,1739735440645,-3026.28466309,0.0001477,2]
[353274739,1739735440654,-344.57215728,0.00014773,6]
[353274740,1739735440664,-200.0,0.00014775,6]
[353274741,1739735440673,-200.0,0.00014788,6]
[353274742,1739735440682,-3026.28466309,0.00014789,2]
[353274743,1739735440691,-344.57215728,0.00014791,6]
[353274744,1739735440701,-1268.42,0.00014794,3]
[353274745,1739735440711,-2180.0,0.00014796,2]
[353274746,1739735440721,-4107.17549642,0.00014796,6]
[353274747,1739735440733,-151.0,0.000148,2]
[353274748,1739735440743,-151.0,0.000148,2]
[353274749,1739735440752,-313.020932,0.000148,2]
[353274750,1739735440762,-313.020932,0.000148,2]
[353274751,1739735440771,-151.0,0.000148,2]
[353274752,1739735440780,-150.0,0.000148,2]
[353274753,1739735440790,-150.0,0.000148,2]
[353274755,1739735440799,-150.0,0.000148,2]
[353274757,1739735440810,-1155.32195529,0.000148,2]
[353274759,1739735440820,-488.62367994,0.000148,2]
[353274761,1739735440830,-16683.49390319,0.000148,2]
[353274763,1739735440839,-150.0,0.000148,2]
[353274765,1739735440848,-3896.15138923,0.000148,2]
[353274767,1739735440858,-3026.28466309,0.00014807,2]
[353274769,1739735440867,-10060.05323224,0.00014816,2]
[353274771,1739735440876,-10060.05323215,0.00014825,2]
[353274773,1739735440886,-3026.28466309,0.00014826,2]
[353274775,1739735440895,-10060.05323215,0.00014835,2]
[353274777,1739735440904,-10060.05323215,0.00014844,2]
[353274779,1739735440914,-3026.28466309,0.00014844,2]
[353274781,1739735440923,-10060.05323215,0.00014853,2]
[353274783,1739735440933,-10060.05323215,0.00014863,2]
[353274785,1739735440943,-3026.28466309,0.00014863,2]
[353274787,1739735440952,-500.0,0.00014869,2]
[353274789,1739735440962,-2000.0,0.00014869,2]
[353274791,1739735440974,-500.0,0.00014869,2]
[353274793,1739735440983,-500.0,0.00014869,2]
[353274795,1739735440992,-200.0,0.00014869,2]
[353274797,1739735441004,-1000.0,0.00014871,2]
[353274799,1739735441013,-309.16,0.00014877,2]
[353274801,1739735441024,-189.15682425,0.0001488,2]
[353274803,1739735441033,-3026.28466309,0.00014881,2]
[353274805,1739735441043,-162.36359636,0.0001489,2]
[353274807,1739735441052,-23821.4491224,0.0001489,3]
[353274810,1739735441062,-152.632833,0.0001489,2]
[353274811,1739735441071,-261.0429547,0.0001489,2]
[353274813,1739735441080,-14781.46476924,0.0001489,2]
[353274815,1739735441090,-23821.4491224,0.00014895,3]
[353274817,1739735441099,-188.01553282,0.000149,2]
[353274819,1739735441108,-151.0,0.000149,2]
[353274821,1739735441117,-313.020932,0.000149,2]
[353274823,1739735441127,-313.020932,0.000149,2]
[353274825,1739735441136,-151.0,0.000149,2]
[353274827,1739735441146,-500.0,0.000149,2]
[353274829,1739735441157,-500.0,0.000149,2]
[353274831,1739735441166,-500.0,0.000149,2]
[353274833,1739735441175,-500.0,0.000149,2]
[353274835,1739735441185,-500.0,0.000149,2]
[353274837,1739735441194,-500.0,0.000149,2]
[353274839,1739735441204,-500.0,0.000149,2]
[353274841,1739735441213,-500.0,0.000149,2]
[353274843,1739735441222,-500.0,0.000149,2]
[353274845,1739735441231,-500.0,0.000149,2]
[353274847,1739735441240,-500.0,0.000149,2]
[353274849,1739735441249,-500.0,0.000149,2]
[353274851,1739735441259,-500.0,0.000149,2]
[353274853,1739735441268,-500.0,0.000149,2]
[353274855,1739735441277,-500.0,0.000149,2]
[353274857,1739735441287,-500.0,0.000149,2]
[353274859,1739735441296,-500.0,0.000149,2]
[353274861,1739735441306,-500.0,0.000149,2]
[353274863,1739735441315,-500.0,0.000149,2]
[353274865,1739735441324,-41.89601228,0.000149,2]
[353274868,1739735441342,-458.10398772,0.000149,2]
[353274870,1739735441352,-500.0,0.000149,2]
[353274872,1739735441361,-500.0,0.000149,2]
[353274874,1739735441370,-143.68287426,0.000149,2]
[353274876,1739735441382,-356.31712574,0.000149,2]
[353274878,1739735441390,-239.69672756,0.000149,2]
[353274880,1739735441402,-260.30327244,0.000149,2]
[353274882,1739735441412,-45.60740934,0.000149,2]
[353274884,1739735441423,-454.39259066,0.000149,2]
[353274886,1739735441433,-500.0,0.000149,2]
[353274888,1739735441443,-200.57823362,0.000149,2]
[353274939,1739735446397,-501.34925,0.00012342,2]
[353274940,1739735446451,-607.65075,0.00012342,2]
[353274941,1739735446461,-2393.47075493,0.00014497,2]
[353274953,1739736359059,500.0,0.0002,120]
[353274954,1739736359317,311.57,0.0002,120]
[353274961,1739736631469,-952.0805,8.851e-05,2]
[353274963,1739736631481,-200.0,9.012e-05,2]
[353274964,1739736631492,-200.0,9.494e-05,2]
[353274965,1739736631504,-200.0,9.736e-05,2]
[353274966,1739736631514,-198.29452315,0.0001,2]
[353274967,1739736631527,-351.70547685,0.0001,2]
[353274968,1739736631537,-157.91,0.00010137,2]
[353274969,1739736631547,-223.71,0.000108,2]
[353274970,1739736631557,-150.0,0.00010957,2]
[353274971,1739736631567,-158.479446,0.00010958,2]
[353274972,1739736631578,-202.850035,0.00010958,2]
[353274973,1739736631589,-202.850035,0.00010958,2]
[353274974,1739736631599,-202.850035,0.00010958,2]
[353274975,1739736631611,-317.953199,0.00010958,2]
[353274976,1739736631621,-317.953199,0.00010958,2]
[353274977,1739736631631,-317.953199,0.00010958,2]
[353274978,1739736631642,-310.938063,0.00010958,2]
[353274979,1739736631652,-270.80292925,0.00010958,2]
[353274980,1739736631667,-40.13513375,0.00010958,2]
[353274981,1739736631677,-310.938063,0.00010958,2]
[353274982,1739736631689,-200.089377,0.00010958,2]
[353274983,1739736631700,-187.28565044,0.00010958,2]
[353274984,1739736631712,-12.80372656,0.00010958,2]
[353274985,1739736631723,-200.089377,0.00010958,2]
[353274986,1739736631734,-158.479446,0.00011041,2]
[353274987,1739736631744,-202.850035,0.00011041,2]
[353274988,1739736631755,-317.953199,0.00011041,2]
[353274989,1739736631766,-0.37551525,0.00011041,2]
[353274990,1739736631791,-310.56254775,0.00011041,2]
[353274991,1739736631802,-200.089377,0.00011041,2]
[353274992,1739736631813,-9999.99,0.00011041,2]
[353274993,1739736631824,-150.99,0.00011041,2]
[353274994,1739736631834,-202.850035,0.00011123,2]
[353274995,1739736631845,-317.953199,0.00011123,2]
[353274996,1739736631855,-310.938063,0.00011123,2]
[353274997,1739736631865,-299.99,0.00011123,2]
[353274998,1739736631876,-200.089377,0.00011123,2]
[353274999,1739736631887,-500.0,0.00011154,2]
[353275000,1739736631897,-500.0,0.00011154,2]
[353275001,1739736631908,-202.850035,0.00011205,2]
[353275002,1739736631919,-317.953199,0.00011205,2]
[353275003,1739736631929,-310.938063,0.00011205,2]
[353275004,1739736631941,-200.089377,0.00011205,2]
[353275005,1739736631952,-406.69797652,0.000117,2]
[353275006,1739736631962,-175.0,0.00011998,2]
[353275008,1739736631973,-600.0,0.00012,2]
[353275009,1739736631983,-515.12074,0.00012242,2]
[353275011,1739736631994,-150.0,0.00012342,2]
[353275013,1739736632004,-150.0,0.00012342,2]
[353275015,1739736632016,-150.0,0.00012342,2]
[353275016,1739736632027,-1273.0,0.00012342,2]
[353275018,1739736632038,-2025.0,0.00012342,2]
[353275020,1739736632049,-638.0,0.00012342,2]
[353275022,1739736632060,-569.0,0.00012342,2]
[353275023,1739736632071,-1786.0,0.00012342,2]
[353275025,1739736632081,-2956.0,0.00012342,2]
[353275027,1739736632094,-783.0,0.00012342,2]
[353275029,1739736632105,-1265.0,0.00012342,2]
[353275032,1739736632115,-218.078,0.00012342,2]
[353275035,1739736632126,-4027.0,0.00012342,2]
[353275037,1739736632137,-538.995,0.00012342,2]
[353275039,1739736632148,-3917.0,0.00012342,2]
[353275041,1739736632158,-150.0,0.00012342,2]
[353275042,1739736632169,-194.68,0.0001283,2]
[353275044,1739736632180,-243.91,0.00012856,2]
[353275046,1739736632191,-250.0,0.00012863,2]
[353275048,1739736632202,-836.31,0.00012936,2]
[353275050,1739736632212,-1984.33,0.00013092,2]
[353275051,1739736632223,-150.0,0.00013315,2]
[353275053,1739736632234,-150.0,0.00013315,2]
[353275055,1739736632245,-278.09500878,0.00013315,2]
[353275057,1739736632256,-1000.0,0.00013359,2]
[353275059,1739736632266,-66.0826941,0.00013433,2]
[353275061,1739736632278,-3016.08556991,0.00013433,2]
[353275063,1739736632297,-9970.74097056,0.00013433,2]
[353275065,1739736632310,-3059.95859964,0.00013433,2]
[353275067,1739736632322,-4050.0,0.00013433,2]
[353275069,1739736632336,-2719.999997,0.00013433,2]
[353275071,1739736632349,-757.1179525,0.00013433,2]
[353275073,1739736632363,-260.01421629,0.00013433,2]
[353275075,1739736632373,-704.82,0.00013456,2]
[353275077,1739736632384,-704.82,0.0001346,2]
[353275079,1739736632395,-704.82,0.00013463,2]
[353275080,1739736632405,-704.82,0.00013467,2]
[353275082,1739736632415,-704.82,0.0001347,2]
[353275084,1739736632425,-704.82,0.00013474,2]
[353275086,1739736632436,-704.82,0.00013478,2]
[353275088,1739736632447,-704.82,0.00013481,2]
[353275090,1739736632457,-704.82,0.00013485,2]
[353275092,1739736632468,-704.82,0.00013488,2]
[353275094,1739736632478,-704.82,0.00013492,2]
[353275096,1739736632489,-167.02,0.00013493,2]
[353275097,1739736632499,-704.82,0.00013495,2]
[353275099,1739736632509,-704.82,0.00013499,2]
[353275101,1739736632519,-704.82,0.00013502,2]
[353275103,1739736632529,-704.82,0.00013506,2]
[353275104,1739736632540,-704.82,0.00013509,2]
[353275106,1739736632550,-704.82,0.00013513,2]
[353275108,1739736632560,-704.82,0.00013516,2]
[353275110,1739736632570,-704.82,0.0001352,2]
[353275112,1739736632580,-704.82,0.00013523,2]
[353275113,1739736632590,-150.0,0.00013589,2]
[353275135,1739736632599,-300.0,0.00013589,2]
[353275137,1739736632856,-1970.74,0.00013589,2]
[353275139,1739736632866,-1004.16,0.00013698,3]
[353275141,1739736632875,-256.73,0.00013699,2]
[353275142,1739736632885,-2000.0,0.00013744,2]